[Event "Titled Tuesday Blitz October 5 2021"]
[White "Molina, Roberto Junio Brito"]
[Black "Bach, Ngoc Thuy Duong"]
[WhiteFideId "2109450"]
[BlackFideId "12408956"]
[WhiteElo "2402"]
[BlackElo "1896"]
[Result "0-1"]
[Round "01"]
[TimeControl "180+1"]
[Date "2021.10.05"]
[WhiteClock "0:00:12"]
[BlackClock "0:01:02"]

1. d4 {[%clk 0:02:56]}  d5 {[%clk 0:02:56]} 2. c4 {[%clk 0:02:55]}  e6 {[%clk 0:02:55]} 3. Nc3 {[%clk 0:02:55]}  c6 {[%clk 0:02:49]} 4. e3 {[%clk 0:02:53]}  Nf6 {[%clk 0:02:49]} 5. Nf3 {[%clk 0:02:52]}  Nbd7 {[%clk 0:02:48]} 6. Qc2 {[%clk 0:02:52]}  Bd6 {[%clk 0:02:31]} 7. Bd3 {[%clk 0:02:52]}  dxc4 {[%clk 0:02:31]} 8. Bxc4 {[%clk 0:02:52]}  b5 {[%clk 0:02:31]} 9. Be2 {[%clk 0:02:52]}  a6 {[%clk 0:02:31]} 10. O-O {[%clk 0:02:48]}  Bb7 {[%clk 0:02:30]} 11. e4 {[%clk 0:02:46]}  e5 {[%clk 0:02:29]} 12. dxe5 {[%clk 0:02:44]}  Nxe5 {[%clk 0:02:29]} 13. Nxe5 {[%clk 0:02:44]}  Bxe5 {[%clk 0:02:29]} 14. f4 {[%clk 0:02:44]}  Bd4+ {[%clk 0:02:29]} 15. Kh1 {[%clk 0:02:44]}  O-O {[%clk 0:02:29]} 16. e5 {[%clk 0:02:34]}  Nd5 {[%clk 0:02:10]} 17. Nxd5 {[%clk 0:02:33]}  Qxd5 {[%clk 0:02:10]} 18. Bf3 {[%clk 0:02:32]}  Qd7 {[%clk 0:02:10]} 19. Bd2 {[%clk 0:02:28]}  c5 {[%clk 0:02:10]} 20. Bxb7 {[%clk 0:02:24]}  Qxb7 {[%clk 0:02:10]} 21. Rae1 {[%clk 0:02:24]}  Qd5 {[%clk 0:02:04]} 22. b3 {[%clk 0:02:15]}  Rad8 {[%clk 0:01:59]} 23. Re2 {[%clk 0:02:13]}  Rfe8 {[%clk 0:01:56]} 24. h3 {[%clk 0:02:11]}  f6 {[%clk 0:01:50]} 25. Ba5 {[%clk 0:02:07]}  Rc8 {[%clk 0:01:44]} 26. exf6 {[%clk 0:02:04]}  Bxf6 {[%clk 0:01:44]} 27. Rd1 {[%clk 0:01:53]}  Qc6 {[%clk 0:01:42]} 28. Rde1 {[%clk 0:01:31]}  Rxe2 {[%clk 0:01:11]} 29. Qxe2 {[%clk 0:01:32]}  h6 {[%clk 0:01:08]} 30. Kh2 {[%clk 0:00:41]}  c4 {[%clk 0:01:07]} 31. bxc4 {[%clk 0:00:34]}  Qxc4 {[%clk 0:01:07]} 32. Qxc4+ {[%clk 0:00:31]}  Rxc4 {[%clk 0:01:06]} 33. Bc7 {[%clk 0:00:12]}  Rxc7 {[%clk 0:01:02]} 0-1


[Site "https://www.chess.com"]

[Event "Titled Tuesday Blitz October 5 2021"]
[White "Moroni, Luca Jr"]
[Black "Estrada Nieto, Julian"]
[WhiteFideId "865834"]
[BlackFideId "5101018"]
[WhiteElo "2491"]
[BlackElo "2270"]
[Result "1-0"]
[Round "01"]
[TimeControl "180+1"]
[Date "2021.10.05"]
[WhiteClock "0:00:08"]
[BlackClock "0:00:01"]

1. d4 {[%clk 0:03:00]}  d5 {[%clk 0:02:59]} 2. c4 {[%clk 0:03:00]}  dxc4 {[%clk 0:03:00]} 3. e3 {[%clk 0:03:00]}  Nf6 {[%clk 0:03:00]} 4. Bxc4 {[%clk 0:03:00]}  e6 {[%clk 0:03:01]} 5. Nf3 {[%clk 0:03:00]}  c5 {[%clk 0:03:01]} 6. O-O {[%clk 0:02:59]}  a6 {[%clk 0:03:01]} 7. b3 {[%clk 0:02:59]}  b5 {[%clk 0:02:59]} 8. Be2 {[%clk 0:02:59]}  Bb7 {[%clk 0:03:00]} 9. Bb2 {[%clk 0:02:58]}  Nbd7 {[%clk 0:02:59]} 10. dxc5 {[%clk 0:02:55]}  Bxc5 {[%clk 0:02:56]} 11. a4 {[%clk 0:02:55]}  b4 {[%clk 0:02:43]} 12. Nbd2 {[%clk 0:02:55]}  O-O {[%clk 0:02:42]} 13. Nc4 {[%clk 0:02:55]}  a5 {[%clk 0:02:37]} 14. Rc1 {[%clk 0:02:55]}  Rc8 {[%clk 0:02:28]} 15. Rc2 {[%clk 0:02:51]}  Qe7 {[%clk 0:02:16]} 16. Nxa5 {[%clk 0:02:41]}  Be4 {[%clk 0:02:15]} 17. Bd3 {[%clk 0:02:23]}  Rfd8 {[%clk 0:01:55]} 18. Bxe4 {[%clk 0:02:17]}  Nxe4 {[%clk 0:01:54]} 19. Qe2 {[%clk 0:02:05]}  Ndf6 {[%clk 0:01:39]} 20. Nd2 {[%clk 0:01:43]}  Bd6 {[%clk 0:01:17]} 21. Nc6 {[%clk 0:01:17]}  Rxc6 {[%clk 0:01:07]} 22. Nxe4 {[%clk 0:01:16]}  Bxh2+ {[%clk 0:00:38]} 23. Kxh2 {[%clk 0:00:57]}  Qc7+ {[%clk 0:00:27]} 24. g3 {[%clk 0:00:55]}  Rxc2 {[%clk 0:00:14]} 25. Nxf6+ {[%clk 0:00:54]}  gxf6 {[%clk 0:00:14]} 26. Qg4+ {[%clk 0:00:54]}  Kf8 {[%clk 0:00:12]} 27. Bxf6 {[%clk 0:00:55]}  Rdd2 {[%clk 0:00:09]} 28. Kg1 {[%clk 0:00:38]}  Ke8 {[%clk 0:00:08]} 29. Qg8+ {[%clk 0:00:35]}  Kd7 {[%clk 0:00:08]} 30. Qxf7+ {[%clk 0:00:36]}  Kd6 {[%clk 0:00:08]} 31. Qf8+ {[%clk 0:00:26]}  Kd5 {[%clk 0:00:07]} 32. Qxb4 {[%clk 0:00:23]}  Qxg3+ {[%clk 0:00:04]} 33. Kh1 {[%clk 0:00:11]}  Qh3+ {[%clk 0:00:04]} 34. Kg1 {[%clk 0:00:11]}  Qg3+ {[%clk 0:00:04]} 35. Kh1 {[%clk 0:00:12]}  Qf3+ {[%clk 0:00:04]} 36. Kg1 {[%clk 0:00:11]}  Qxf6 {[%clk 0:00:04]} 37. Qb7+ {[%clk 0:00:08]}  Ke5 {[%clk 0:00:04]} 38. Qb8+ {[%clk 0:00:08]}  Kf5 {[%clk 0:00:04]} 39. Qf4+ {[%clk 0:00:08]}  Kg6 {[%clk 0:00:04]} 40. Qe4+ {[%clk 0:00:09]}  Qf5 {[%clk 0:00:04]} 41. Qg2+ {[%clk 0:00:07]}  Qg5 {[%clk 0:00:04]} 42. Qxg5+ {[%clk 0:00:08]}  Kxg5 {[%clk 0:00:04]} 43. Kg2 {[%clk 0:00:09]}  Rb2 {[%clk 0:00:03]} 44. Kf3 {[%clk 0:00:09]}  Kf5 {[%clk 0:00:04]} 45. a5 {[%clk 0:00:08]}  e5 {[%clk 0:00:04]} 46. a6 {[%clk 0:00:08]}  e4+ {[%clk 0:00:04]} 47. Kg3 {[%clk 0:00:08]}  Rxb3 {[%clk 0:00:04]} 48. Ra1 {[%clk 0:00:08]}  Rbb2 {[%clk 0:00:05]} 49. a7 {[%clk 0:00:06]}  Rd8 {[%clk 0:00:03]} 50. Ra5+ {[%clk 0:00:06]}  Kf6 {[%clk 0:00:02]} 51. a8=Q {[%clk 0:00:06]}  Rxa8 {[%clk 0:00:02]} 52. Rxa8 {[%clk 0:00:07]}  Rb1 {[%clk 0:00:02]} 53. Ra6+ {[%clk 0:00:07]}  Kg5 {[%clk 0:00:01]} 54. Ra5+ {[%clk 0:00:08]}  Kg6 {[%clk 0:00:01]} 55. Kf4 {[%clk 0:00:08]} 1-0


[Site "https://www.chess.com"]

[Event "Titled Tuesday Blitz October 5 2021"]
[White "Mustafayev, Farid"]
[Black "Snehal, Bhosale"]
[WhiteFideId "13408771"]
[BlackFideId "5021995"]
[WhiteElo "2091"]
[BlackElo "2103"]
[Result "0-1"]
[Round "01"]
[TimeControl "180+1"]
[Date "2021.10.05"]
[WhiteClock "0:00:31"]
[BlackClock "0:00:12"]

1. d4 {[%clk 0:03:00]}  d5 {[%clk 0:02:59]} 2. c4 {[%clk 0:03:00]}  c6 {[%clk 0:02:59]} 3. Nc3 {[%clk 0:03:00]}  Nf6 {[%clk 0:02:59]} 4. g3 {[%clk 0:02:58]}  a6 {[%clk 0:02:59]} 5. Bg2 {[%clk 0:02:53]}  b5 {[%clk 0:02:58]} 6. cxd5 {[%clk 0:02:50]}  cxd5 {[%clk 0:02:59]} 7. Nf3 {[%clk 0:02:50]}  Bg4 {[%clk 0:02:57]} 8. Ne5 {[%clk 0:02:47]}  Bh5 {[%clk 0:02:47]} 9. O-O {[%clk 0:02:35]}  e6 {[%clk 0:02:47]} 10. Nd3 {[%clk 0:02:20]}  Nbd7 {[%clk 0:02:43]} 11. a4 {[%clk 0:02:17]}  b4 {[%clk 0:02:38]} 12. Na2 {[%clk 0:02:17]}  a5 {[%clk 0:02:37]} 13. Bf4 {[%clk 0:02:14]}  Nb6 {[%clk 0:02:17]} 14. Nac1 {[%clk 0:02:10]}  Bd6 {[%clk 0:02:17]} 15. Nb3 {[%clk 0:01:48]}  Nc4 {[%clk 0:01:59]} 16. Bxd6 {[%clk 0:01:46]}  Qxd6 {[%clk 0:01:58]} 17. Nbc5 {[%clk 0:01:47]}  O-O {[%clk 0:01:52]} 18. b3 {[%clk 0:01:46]}  Nb6 {[%clk 0:01:48]} 19. f3 {[%clk 0:01:45]}  Bg6 {[%clk 0:01:45]} 20. Qd2 {[%clk 0:01:45]}  Nbd7 {[%clk 0:01:43]} 21. Rac1 {[%clk 0:01:33]}  Rfc8 {[%clk 0:01:43]} 22. Kh1 {[%clk 0:01:28]}  Nxc5 {[%clk 0:01:36]} 23. Nxc5 {[%clk 0:01:28]}  Nd7 {[%clk 0:01:36]} 24. Nd3 {[%clk 0:01:23]}  Qa6 {[%clk 0:01:32]} 25. Nf4 {[%clk 0:01:21]}  Rxc1 {[%clk 0:01:27]} 26. Rxc1 {[%clk 0:01:20]}  Rc8 {[%clk 0:01:28]} 27. e4 {[%clk 0:01:19]}  Nf6 {[%clk 0:01:18]} 28. Nd3 {[%clk 0:01:00]}  dxe4 {[%clk 0:00:59]} 29. Nc5 {[%clk 0:00:58]}  Qc6 {[%clk 0:00:42]} 30. Nd3 {[%clk 0:00:49]}  Qb7 {[%clk 0:00:32]} 31. Rxc8+ {[%clk 0:00:44]}  Qxc8 {[%clk 0:00:33]} 32. Nc5 {[%clk 0:00:44]}  exf3 {[%clk 0:00:25]} 33. Bxf3 {[%clk 0:00:45]}  Nd5 {[%clk 0:00:25]} 34. Bxd5 {[%clk 0:00:44]}  exd5 {[%clk 0:00:25]} 35. Qe3 {[%clk 0:00:45]}  h6 {[%clk 0:00:22]} 36. Kg2 {[%clk 0:00:42]}  Qf5 {[%clk 0:00:22]} 37. Qe2 {[%clk 0:00:41]}  Qb1 {[%clk 0:00:21]} 38. h4 {[%clk 0:00:37]}  Bf5 {[%clk 0:00:19]} 39. g4 {[%clk 0:00:37]}  Bc2 {[%clk 0:00:18]} 40. Qf3 {[%clk 0:00:28]}  Be4 {[%clk 0:00:16]} 41. Nxe4 {[%clk 0:00:27]}  Qxe4 {[%clk 0:00:10]} 42. Qxe4 {[%clk 0:00:27]}  dxe4 {[%clk 0:00:11]} 43. Kf2 {[%clk 0:00:27]}  g6 {[%clk 0:00:11]} 44. g5 {[%clk 0:00:28]}  hxg5 {[%clk 0:00:09]} 45. hxg5 {[%clk 0:00:29]}  f5 {[%clk 0:00:08]} 46. gxf6 {[%clk 0:00:28]}  Kf7 {[%clk 0:00:09]} 47. Ke3 {[%clk 0:00:29]}  Kxf6 {[%clk 0:00:08]} 48. Kxe4 {[%clk 0:00:29]}  Ke6 {[%clk 0:00:09]} 49. d5+ {[%clk 0:00:29]}  Kd6 {[%clk 0:00:09]} 50. Kd4 {[%clk 0:00:29]}  g5 {[%clk 0:00:10]} 51. Ke4 {[%clk 0:00:30]}  g4 {[%clk 0:00:10]} 52. Kf4 {[%clk 0:00:30]}  Kxd5 {[%clk 0:00:11]} 53. Kxg4 {[%clk 0:00:30]}  Kd4 {[%clk 0:00:12]} 54. Kf3 {[%clk 0:00:31]}  Kc3 {[%clk 0:00:12]} 0-1


[Site "https://www.chess.com"]

[Event "Titled Tuesday Blitz October 5 2021"]
[White "Nilsen, Tobias Lang"]
[Black "Leitao, Rafael"]
[WhiteFideId "1521624"]
[BlackFideId "2101246"]
[WhiteElo "1975"]
[BlackElo "2609"]
[Result "1/2-1/2"]
[Round "01"]
[TimeControl "180+1"]
[Date "2021.10.05"]
[WhiteClock "0:00:12"]
[BlackClock "0:00:16"]

1. e4 {[%clk 0:03:00]}  e5 {[%clk 0:02:59]} 2. Nf3 {[%clk 0:02:58]}  Nc6 {[%clk 0:02:59]} 3. Bb5 {[%clk 0:02:59]}  a6 {[%clk 0:02:58]} 4. Ba4 {[%clk 0:02:59]}  Nf6 {[%clk 0:02:58]} 5. O-O {[%clk 0:02:59]}  b5 {[%clk 0:02:59]} 6. Bb3 {[%clk 0:02:59]}  Bc5 {[%clk 0:02:59]} 7. c3 {[%clk 0:02:59]}  d6 {[%clk 0:02:59]} 8. d4 {[%clk 0:02:58]}  Bb6 {[%clk 0:02:59]} 9. Be3 {[%clk 0:02:57]}  Bg4 {[%clk 0:02:53]} 10. Nbd2 {[%clk 0:02:52]}  exd4 {[%clk 0:02:50]} 11. cxd4 {[%clk 0:02:47]}  Bxd4 {[%clk 0:02:38]} 12. Qc2 {[%clk 0:02:30]}  Bxe3 {[%clk 0:02:28]} 13. Qxc6+ {[%clk 0:02:26]}  Bd7 {[%clk 0:02:28]} 14. Qc2 {[%clk 0:02:22]}  Bxd2 {[%clk 0:02:22]} 15. Qxd2 {[%clk 0:02:20]}  O-O {[%clk 0:02:15]} 16. e5 {[%clk 0:02:19]}  dxe5 {[%clk 0:02:11]} 17. Nxe5 {[%clk 0:02:20]}  Be6 {[%clk 0:02:11]} 18. Qc2 {[%clk 0:02:17]}  Bxb3 {[%clk 0:02:09]} 19. axb3 {[%clk 0:02:16]}  Qd6 {[%clk 0:02:04]} 20. Nf3 {[%clk 0:02:06]}  c5 {[%clk 0:01:59]} 21. Rfd1 {[%clk 0:02:04]}  Qc7 {[%clk 0:01:59]} 22. Rac1 {[%clk 0:02:04]}  Rac8 {[%clk 0:01:57]} 23. Qf5 {[%clk 0:01:58]}  Rfd8 {[%clk 0:01:44]} 24. h3 {[%clk 0:01:45]}  Rxd1+ {[%clk 0:01:43]} 25. Rxd1 {[%clk 0:01:46]}  h6 {[%clk 0:01:30]} 26. Ne5 {[%clk 0:01:39]}  Re8 {[%clk 0:01:27]} 27. Ng4 {[%clk 0:01:32]}  Nxg4 {[%clk 0:01:21]} 28. hxg4 {[%clk 0:01:33]}  Qe7 {[%clk 0:01:04]} 29. g3 {[%clk 0:01:27]}  Qe5 {[%clk 0:00:57]} 30. Rd5 {[%clk 0:00:49]}  Qxb2 {[%clk 0:00:48]} 31. Qd3 {[%clk 0:00:38]}  c4 {[%clk 0:00:40]} 32. bxc4 {[%clk 0:00:37]}  Qc1+ {[%clk 0:00:40]} 33. Kg2 {[%clk 0:00:36]}  bxc4 {[%clk 0:00:39]} 34. Qd4 {[%clk 0:00:35]}  c3 {[%clk 0:00:29]} 35. Rc5 {[%clk 0:00:34]}  Qd2 {[%clk 0:00:29]} 36. Qxc3 {[%clk 0:00:30]}  Qxc3 {[%clk 0:00:29]} 37. Rxc3 {[%clk 0:00:31]}  a5 {[%clk 0:00:30]} 38. Ra3 {[%clk 0:00:31]}  Ra8 {[%clk 0:00:30]} 39. Kf3 {[%clk 0:00:31]}  f6 {[%clk 0:00:29]} 40. Ke4 {[%clk 0:00:32]}  a4 {[%clk 0:00:29]} 41. Kd5 {[%clk 0:00:30]}  Kf7 {[%clk 0:00:29]} 42. Kc4 {[%clk 0:00:30]}  Kg6 {[%clk 0:00:26]} 43. f4 {[%clk 0:00:29]}  h5 {[%clk 0:00:24]} 44. gxh5+ {[%clk 0:00:24]}  Kxh5 {[%clk 0:00:25]} 45. Kd5 {[%clk 0:00:25]}  Kg4 {[%clk 0:00:24]} 46. Ke6 {[%clk 0:00:25]}  Ra7 {[%clk 0:00:24]} 47. Kd6 {[%clk 0:00:24]}  Kf5 {[%clk 0:00:24]} 48. Kd5 {[%clk 0:00:24]}  Ra5+ {[%clk 0:00:23]} 49. Kd6 {[%clk 0:00:24]}  Ke4 {[%clk 0:00:23]} 50. Ke7 {[%clk 0:00:24]}  Ra7+ {[%clk 0:00:23]} 51. Kf8 {[%clk 0:00:23]}  Kd4 {[%clk 0:00:24]} 52. g4 {[%clk 0:00:23]}  Kc4 {[%clk 0:00:24]} 53. g5 {[%clk 0:00:22]}  fxg5 {[%clk 0:00:24]} 54. fxg5 {[%clk 0:00:23]}  Kb4 {[%clk 0:00:24]} 55. Ra1 {[%clk 0:00:23]}  a3 {[%clk 0:00:23]} 56. Rb1+ {[%clk 0:00:23]}  Kc3 {[%clk 0:00:24]} 57. Rc1+ {[%clk 0:00:22]}  Kb2 {[%clk 0:00:24]} 58. Rf1 {[%clk 0:00:20]}  a2 {[%clk 0:00:23]} 59. Rf2+ {[%clk 0:00:21]}  Kb3 {[%clk 0:00:23]} 60. Rf3+ {[%clk 0:00:21]}  Kc4 {[%clk 0:00:23]} 61. Rf1 {[%clk 0:00:20]}  a1=Q {[%clk 0:00:23]} 62. Rxa1 {[%clk 0:00:20]}  Rxa1 {[%clk 0:00:24]} 63. Kxg7 {[%clk 0:00:21]}  Kd5 {[%clk 0:00:24]} 64. g6 {[%clk 0:00:20]}  Ke6 {[%clk 0:00:24]} 65. Kh7 {[%clk 0:00:15]}  Kf6 {[%clk 0:00:24]} 66. g7 {[%clk 0:00:14]}  Rh1+ {[%clk 0:00:21]} 67. Kg8 {[%clk 0:00:13]}  Rg1 {[%clk 0:00:19]} 68. Kh8 {[%clk 0:00:14]}  Rh1+ {[%clk 0:00:20]} 69. Kg8 {[%clk 0:00:14]}  Ra1 {[%clk 0:00:17]} 70. Kh8 {[%clk 0:00:12]}  Rh1+ {[%clk 0:00:16]} 71. Kg8 {[%clk 0:00:12]} 1/2-1/2


[Site "https://www.chess.com"]

[Event "Titled Tuesday Blitz October 5 2021"]
[White "Petukhov, Dmitry"]
[Black "Timmermans, Mark"]
[WhiteFideId "4142748"]
[BlackFideId "1026399"]
[WhiteElo "2356"]
[BlackElo "2460"]
[Result "0-1"]
[Round "01"]
[TimeControl "180+1"]
[Date "2021.10.05"]
[WhiteClock "0:00:12"]
[BlackClock "0:00:35"]

1. e4 {[%clk 0:02:59]}  e5 {[%clk 0:02:58]} 2. Nf3 {[%clk 0:02:55]}  Nc6 {[%clk 0:02:58]} 3. Bb5 {[%clk 0:02:55]}  f5 {[%clk 0:02:57]} 4. d4 {[%clk 0:02:51]}  fxe4 {[%clk 0:02:55]} 5. Bxc6 {[%clk 0:02:52]}  dxc6 {[%clk 0:02:55]} 6. Nxe5 {[%clk 0:02:52]}  Nf6 {[%clk 0:02:55]} 7. O-O {[%clk 0:02:52]}  Bd6 {[%clk 0:02:46]} 8. Nc3 {[%clk 0:02:49]}  Qe7 {[%clk 0:02:40]} 9. Bf4 {[%clk 0:02:47]}  O-O {[%clk 0:02:38]} 10. Qe2 {[%clk 0:02:36]}  Bf5 {[%clk 0:02:37]} 11. Rae1 {[%clk 0:02:28]}  Nd5 {[%clk 0:02:32]} 12. Bg3 {[%clk 0:02:23]}  Nxc3 {[%clk 0:02:26]} 13. bxc3 {[%clk 0:02:24]}  c5 {[%clk 0:02:17]} 14. f3 {[%clk 0:02:07]}  exf3 {[%clk 0:02:08]} 15. Rxf3 {[%clk 0:02:07]}  cxd4 {[%clk 0:02:02]} 16. cxd4 {[%clk 0:02:06]}  Rae8 {[%clk 0:01:48]} 17. Ref1 {[%clk 0:01:53]}  Be6 {[%clk 0:01:47]} 18. c4 {[%clk 0:01:32]}  c5 {[%clk 0:01:37]} 19. Rxf8+ {[%clk 0:01:14]}  Rxf8 {[%clk 0:01:38]} 20. Rxf8+ {[%clk 0:01:14]}  Kxf8 {[%clk 0:01:39]} 21. Qh5 {[%clk 0:00:53]}  g6 {[%clk 0:01:11]} 22. Qh6+ {[%clk 0:00:46]}  Kg8 {[%clk 0:01:04]} 23. d5 {[%clk 0:00:46]}  Bf5 {[%clk 0:01:01]} 24. Qe3 {[%clk 0:00:42]}  Kg7 {[%clk 0:00:48]} 25. Bf4 {[%clk 0:00:39]}  Bb1 {[%clk 0:00:40]} 26. a3 {[%clk 0:00:36]}  Kg8 {[%clk 0:00:40]} 27. h3 {[%clk 0:00:34]}  Ba2 {[%clk 0:00:39]} 28. Qc3 {[%clk 0:00:30]}  Qf6 {[%clk 0:00:37]} 29. g3 {[%clk 0:00:27]}  g5 {[%clk 0:00:36]} 30. Qd2 {[%clk 0:00:14]}  gxf4 {[%clk 0:00:36]} 31. Ng4 {[%clk 0:00:15]}  Qd4+ {[%clk 0:00:35]} 32. Qxd4 {[%clk 0:00:15]}  cxd4 {[%clk 0:00:36]} 33. gxf4 {[%clk 0:00:12]}  Bxc4 {[%clk 0:00:37]} 34. Kg2 {[%clk 0:00:12]}  Bxd5+ {[%clk 0:00:37]} 35. Kg3 {[%clk 0:00:12]}  Kg7 {[%clk 0:00:37]} 36. h4 {[%clk 0:00:12]}  h5 {[%clk 0:00:36]} 37. Nf2 {[%clk 0:00:11]}  Kf6 {[%clk 0:00:37]} 38. Nd3 {[%clk 0:00:11]}  Kf5 {[%clk 0:00:35]} 39. Kf2 {[%clk 0:00:11]}  Bxf4 {[%clk 0:00:35]} 40. Ke2 {[%clk 0:00:12]}  Bc4 {[%clk 0:00:35]} 0-1


[Site "https://www.chess.com"]

[Event "Titled Tuesday Blitz October 5 2021"]
[White "Rasulov, Vugar"]
[Black "Mickiewicz, Piotr"]
[WhiteFideId "13402390"]
[BlackFideId "1114891"]
[WhiteElo "2560"]
[BlackElo "2251"]
[Result "0-1"]
[Round "01"]
[TimeControl "180+1"]
[Date "2021.10.05"]
[WhiteClock "0:00:16"]
[BlackClock "0:00:03"]

1. e4 {[%clk 0:03:00]}  c5 {[%clk 0:02:58]} 2. Nf3 {[%clk 0:03:01]}  d6 {[%clk 0:02:58]} 3. d4 {[%clk 0:03:01]}  cxd4 {[%clk 0:02:59]} 4. Nxd4 {[%clk 0:03:02]}  Nf6 {[%clk 0:02:59]} 5. Nc3 {[%clk 0:03:02]}  e6 {[%clk 0:02:59]} 6. Be3 {[%clk 0:03:02]}  a6 {[%clk 0:02:58]} 7. f3 {[%clk 0:03:02]}  b5 {[%clk 0:02:57]} 8. g4 {[%clk 0:03:03]}  Bb7 {[%clk 0:02:54]} 9. Qd2 {[%clk 0:03:03]}  Nfd7 {[%clk 0:02:52]} 10. O-O-O {[%clk 0:03:02]}  Nb6 {[%clk 0:02:51]} 11. Bd3 {[%clk 0:02:55]}  N8d7 {[%clk 0:02:50]} 12. g5 {[%clk 0:02:52]}  Rc8 {[%clk 0:02:49]} 13. Kb1 {[%clk 0:02:52]}  Ne5 {[%clk 0:02:44]} 14. h4 {[%clk 0:02:47]}  b4 {[%clk 0:02:34]} 15. Nce2 {[%clk 0:02:43]}  Nbc4 {[%clk 0:02:15]} 16. Bxc4 {[%clk 0:02:42]}  Nxc4 {[%clk 0:02:15]} 17. Qd3 {[%clk 0:02:38]}  Be7 {[%clk 0:02:04]} 18. Bc1 {[%clk 0:02:38]}  O-O {[%clk 0:01:58]} 19. g6 {[%clk 0:02:38]}  hxg6 {[%clk 0:01:55]} 20. h5 {[%clk 0:02:38]}  g5 {[%clk 0:01:51]} 21. Rdg1 {[%clk 0:02:34]}  d5 {[%clk 0:01:46]} 22. exd5 {[%clk 0:02:24]}  Qxd5 {[%clk 0:01:44]} 23. f4 {[%clk 0:02:03]}  g4 {[%clk 0:01:42]} 24. f5 {[%clk 0:01:49]}  e5 {[%clk 0:01:38]} 25. h6 {[%clk 0:01:49]}  g5 {[%clk 0:01:24]} 26. fxg6 {[%clk 0:01:48]}  exd4 {[%clk 0:00:33]} 27. g7 {[%clk 0:01:25]}  Rfd8 {[%clk 0:00:19]} 28. Ng3 {[%clk 0:01:24]}  Ne5 {[%clk 0:00:14]} 29. Nf5 {[%clk 0:01:15]}  Kh7 {[%clk 0:00:09]} 30. Qg3 {[%clk 0:01:02]}  Ng6 {[%clk 0:00:08]} 31. Qxg4 {[%clk 0:00:55]}  Bf6 {[%clk 0:00:08]} 32. Ng3 {[%clk 0:00:47]}  d3 {[%clk 0:00:07]} 33. Nh5 {[%clk 0:00:42]}  dxc2+ {[%clk 0:00:06]} 34. Ka1 {[%clk 0:00:43]}  Be5 {[%clk 0:00:05]} 35. Re1 {[%clk 0:00:36]}  Rc5 {[%clk 0:00:05]} 36. Rhf1 {[%clk 0:00:31]}  Ra5 {[%clk 0:00:05]} 37. g8=Q+ {[%clk 0:00:21]}  Rxg8 {[%clk 0:00:03]} 38. Rxf7+ {[%clk 0:00:17]}  Qxf7 {[%clk 0:00:04]} 39. Nf6+ {[%clk 0:00:17]}  Bxf6 {[%clk 0:00:03]} 40. Qc4 {[%clk 0:00:16]}  Qxc4 {[%clk 0:00:03]} 0-1


[Site "https://www.chess.com"]

[Event "Titled Tuesday Blitz October 5 2021"]
[White "Reprintsev, Alexander"]
[Black "Salinas Herrera, Pablo"]
[WhiteFideId "14100541"]
[BlackFideId "3407128"]
[WhiteElo "2126"]
[BlackElo "2541"]
[Result "0-1"]
[Round "01"]
[TimeControl "180+1"]
[Date "2021.10.05"]
[WhiteClock "0:00:18"]
[BlackClock "0:01:06"]

1. e4 {[%clk 0:02:24]}  e5 {[%clk 0:02:57]} 2. Nf3 {[%clk 0:02:22]}  Nc6 {[%clk 0:02:57]} 3. Bc4 {[%clk 0:02:22]}  Bc5 {[%clk 0:02:57]} 4. b4 {[%clk 0:02:22]}  Bxb4 {[%clk 0:02:57]} 5. c3 {[%clk 0:02:22]}  Ba5 {[%clk 0:02:57]} 6. d4 {[%clk 0:02:21]}  b5 {[%clk 0:02:55]} 7. Bxb5 {[%clk 0:02:13]}  Nxd4 {[%clk 0:02:53]} 8. Nxd4 {[%clk 0:02:01]}  exd4 {[%clk 0:02:53]} 9. Bd2 {[%clk 0:01:57]}  dxc3 {[%clk 0:02:47]} 10. Bxc3 {[%clk 0:01:57]}  Bxc3+ {[%clk 0:02:40]} 11. Nxc3 {[%clk 0:01:57]}  Ne7 {[%clk 0:02:31]} 12. O-O {[%clk 0:01:55]}  O-O {[%clk 0:02:28]} 13. Qd3 {[%clk 0:01:40]}  d6 {[%clk 0:02:09]} 14. Rac1 {[%clk 0:01:38]}  Be6 {[%clk 0:02:06]} 15. f4 {[%clk 0:01:36]}  c6 {[%clk 0:02:05]} 16. Ba4 {[%clk 0:01:32]}  f5 {[%clk 0:02:02]} 17. Rfd1 {[%clk 0:01:24]}  fxe4 {[%clk 0:01:51]} 18. Qxe4 {[%clk 0:01:20]}  Bg4 {[%clk 0:01:40]} 19. Re1 {[%clk 0:01:14]}  Rf7 {[%clk 0:01:37]} 20. Bc2 {[%clk 0:00:35]}  Bf5 {[%clk 0:01:33]} 21. Qc4 {[%clk 0:00:31]}  d5 {[%clk 0:01:30]} 22. Qb3 {[%clk 0:00:26]}  Bxc2 {[%clk 0:01:30]} 23. Rxc2 {[%clk 0:00:25]}  Qb6+ {[%clk 0:01:27]} 24. Qxb6 {[%clk 0:00:25]}  axb6 {[%clk 0:01:27]} 25. g3 {[%clk 0:00:26]}  c5 {[%clk 0:01:20]} 26. Re6 {[%clk 0:00:22]}  d4 {[%clk 0:01:12]} 27. Ne4 {[%clk 0:00:20]}  Nd5 {[%clk 0:01:12]} 28. Ng5 {[%clk 0:00:18]}  Rb7 {[%clk 0:01:09]} 29. Rd6 {[%clk 0:00:18]}  Ne3 {[%clk 0:01:07]} 30. Rb2 {[%clk 0:00:18]}  Nc4 {[%clk 0:01:06]} 0-1


[Site "https://www.chess.com"]

[Event "Titled Tuesday Blitz October 5 2021"]
[White "Ronka, Erik"]
[Black "Visakh N R"]
[WhiteFideId "505080"]
[BlackFideId "25012223"]
[WhiteElo "2264"]
[BlackElo "2454"]
[Result "0-1"]
[Round "01"]
[TimeControl "180+1"]
[Date "2021.10.05"]
[WhiteClock "0:00:20"]
[BlackClock "0:01:30"]

1. e4 {[%clk 0:03:00]}  c6 {[%clk 0:02:57]} 2. d4 {[%clk 0:03:00]}  d5 {[%clk 0:02:57]} 3. e5 {[%clk 0:03:01]}  Bf5 {[%clk 0:02:57]} 4. Nc3 {[%clk 0:03:00]}  e6 {[%clk 0:02:56]} 5. g4 {[%clk 0:03:00]}  Bg6 {[%clk 0:02:56]} 6. Nge2 {[%clk 0:03:01]}  c5 {[%clk 0:02:53]} 7. Be3 {[%clk 0:03:01]}  Nc6 {[%clk 0:02:52]} 8. dxc5 {[%clk 0:03:00]}  h5 {[%clk 0:02:44]} 9. Nd4 {[%clk 0:02:19]}  hxg4 {[%clk 0:02:38]} 10. Bb5 {[%clk 0:02:16]}  Ne7 {[%clk 0:02:35]} 11. Ba4 {[%clk 0:02:03]}  Rc8 {[%clk 0:02:25]} 12. Ndb5 {[%clk 0:02:00]}  Nf5 {[%clk 0:02:22]} 13. Qe2 {[%clk 0:01:31]}  a6 {[%clk 0:01:48]} 14. Nd6+ {[%clk 0:01:30]}  Bxd6 {[%clk 0:01:48]} 15. cxd6 {[%clk 0:01:07]}  b5 {[%clk 0:01:47]} 16. Bb3 {[%clk 0:01:06]}  d4 {[%clk 0:01:46]} 17. O-O-O {[%clk 0:01:03]}  O-O {[%clk 0:01:41]} 18. Ne4 {[%clk 0:00:48]}  dxe3 {[%clk 0:01:34]} 19. f4 {[%clk 0:00:39]}  Ncd4 {[%clk 0:01:33]} 20. Qg2 {[%clk 0:00:28]}  e2 {[%clk 0:01:32]} 21. Rde1 {[%clk 0:00:27]}  Nxb3+ {[%clk 0:01:30]} 22. axb3 {[%clk 0:00:27]}  Rxc2+ {[%clk 0:01:31]} 23. Kb1 {[%clk 0:00:25]}  Ne3 {[%clk 0:01:30]} 24. Qg3 {[%clk 0:00:20]}  Bxe4 {[%clk 0:01:30]} 0-1


[Site "https://www.chess.com"]